fUSD/lending_fUSD_20250206
["ID","MTS","AMOUNT","RATE_DAILY","PERIOD"]
[351978392,1738866653105,-1110.4,0.00016981,2]
[351978394,1738866653115,-1353.54,0.00016981,2]
[351978395,1738866653124,-842.77,0.00016981,2]
[351978397,1738866653134,-908.69,0.00016981,2]
[351978399,1738866653143,-587.68,0.00016981,2]
[351978402,1738866653153,-1257.73,0.00016981,2]
[351978403,1738866653162,-2630.17,0.00016981,2]
[351978405,1738866653172,-1528.25,0.00016981,2]
[351978407,1738866653182,-1242.52,0.00016981,2]
[351978410,1738866653192,-1407.68,0.00016981,2]
[351978412,1738866653202,-877.83,0.00016981,2]
[351978414,1738866653212,-1455.99,0.00016981,2]
[351978416,1738866653222,-500.0,0.00016981,2]
[351978418,1738866653231,-500.0,0.00016981,2]
[351978420,1738866653240,-1199.99,0.00016981,2]
[351978422,1738866653253,-500.0,0.00016981,2]
[351978424,1738866653263,-325.04002504,0.00016981,2]
[351978426,1738866653272,-500.0,0.00016982,2]
[351978428,1738866653282,-580.86,0.00016982,2]
[351978430,1738866653291,-500.0,0.00016982,2]
[351978432,1738866653301,-1233.51,0.00016982,2]
[351978433,1738866653310,-541.33693379,0.00016982,2]
[351978435,1738866653319,-500.0,0.00016982,2]
[351978436,1738866653330,-528.44,0.00016982,2]
[351978437,1738866653340,-500.0,0.00016982,2]
[351978438,1738866653350,-590.09,0.00016982,2]
[351978439,1738866653359,-851.34,0.00016984,2]
[351978440,1738866653369,-369.74,0.00016985,2]
[351978441,1738866653379,-500.0,0.00016985,2]
[351978442,1738866653389,-505.06795763,0.00016985,2]
[351978443,1738866653398,-500.0,0.00016985,2]
[351978444,1738866653408,-500.0,0.00016985,2]
[351978445,1738866653418,-500.0,0.00016985,2]
[351978446,1738866653429,-500.0,0.00016985,2]
[351978447,1738866653438,-500.0,0.00016985,2]
[351978448,1738866653448,-500.0,0.00016985,2]
[351978449,1738866653458,-629.41,0.00016986,2]
[351978450,1738866653467,-1212.13,0.00016986,2]
[351978458,1738866653535,-2191.68,0.00016986,2]
[351978460,1738866653545,-1150.67,0.00016986,2]
[351978462,1738866653554,-1194.7,0.00016986,2]
[351978464,1738866653564,-1670.96,0.00016986,2]
[351978466,1738866653575,-2394.38,0.00016986,2]
[351978468,1738866653586,-1909.88,0.00016986,2]
[351978470,1738866653596,-879.69,0.00016986,2]
[351978472,1738866653606,-1406.63,0.00016986,2]
[351978474,1738866653617,-500.0,0.00016986,2]
[351978476,1738866653627,-1626.57,0.00016986,2]
[351978478,1738866653637,-1052.49,0.00016986,2]
[351978479,1738866653647,-2439.5,0.00016986,2]
[351978481,1738866653657,-1556.35,0.00016986,2]
[351978484,1738866653667,-1571.46,0.00016986,2]
[351978485,1738866653677,-500.0,0.00016986,2]
[351978487,1738866653687,-500.0,0.00016986,2]
[351978489,1738866653698,-500.0,0.00016986,2]
[351978491,1738866653708,-3154.44,0.00016986,2]
[351978493,1738866653717,-500.0,0.00016986,2]
[351978495,1738866653727,-1374.49,0.00016986,2]
[351978497,1738866653737,-781.28,0.00016986,2]
[351978499,1738866653753,-500.0,0.00016986,2]
[351978501,1738866653764,-962.38,0.00016986,2]
[351978503,1738866653774,-666.23,0.00016986,2]
[351978506,1738866653785,-500.0,0.00016986,2]
[351978508,1738866653798,-876.98,0.00016986,2]
[351978510,1738866653809,-823.01,0.00016986,2]
[351978511,1738866653819,-752.31,0.00016986,2]
[351978513,1738866653829,-500.0,0.00016986,2]
[351978515,1738866653839,-1511.53,0.00016986,2]
[351978517,1738866653848,-139701.46189079,0.0001706,2]
[351978519,1738866653859,-500.0,0.00017117,2]
[351978521,1738866653869,-500.0,0.00017117,2]
[351978523,1738866653878,-228.85,0.00017117,2]
[351978525,1738866653889,-500.0,0.00017117,2]
[351978527,1738866653899,-230.66,0.00017117,2]
[351978529,1738866653908,-365.28931644,0.00017117,2]
[351978531,1738866653918,-500.0,0.00017117,2]
[351978533,1738866653928,-500.0,0.00017117,2]
[351978535,1738866653938,-500.0,0.00017117,2]
[351978537,1738866653948,-500.0,0.00017117,2]
[351978539,1738866653959,-500.0,0.00017117,2]
[351978541,1738866653970,-500.0,0.00017117,2]
[351978543,1738866653980,-500.0,0.00017117,2]
[351978545,1738866653991,-500.0,0.00017117,2]
[351978548,1738866654006,-500.0,0.00017117,2]
[351978549,1738866654015,-209.29,0.00017117,2]
[351978551,1738866654025,-511.45,0.00017117,2]
[351978553,1738866654034,-500.0,0.00017117,2]
[351978555,1738866654044,-500.0,0.00017117,2]
[351978557,1738866654055,-500.0,0.00017117,2]
[351978559,1738866654065,-500.0,0.00017117,2]
[351978561,1738866654075,-592.64,0.00017117,2]
[351978563,1738866654085,-500.0,0.00017117,2]
[351978565,1738866654097,-500.0,0.00017117,2]
[351978567,1738866654107,-500.0,0.00017117,2]
[351978569,1738866654118,-500.0,0.00017117,2]
[351978571,1738866654128,-500.0,0.00017117,2]
[351978573,1738866654138,-611.87069408,0.00017117,2]
[351978575,1738866654148,-500.0,0.00017117,2]
[351978577,1738866654159,-500.0,0.00017117,2]
[351978579,1738866654169,-500.0,0.00017117,2]
[351978581,1738866654180,-500.0,0.00017117,2]
[351978583,1738866654191,-500.0,0.00017117,2]
[351978585,1738866654203,-500.0,0.00017117,2]
[351978587,1738866654214,-500.0,0.00017117,2]
[351978589,1738866654224,-500.0,0.00017117,2]
[351978591,1738866654236,-373.84,0.00017117,2]
[351978593,1738866654251,-500.0,0.00017117,2]
[351978595,1738866654263,-500.0,0.00017117,2]
[351978597,1738866654274,-257.08975325,0.00017117,2]
[351978599,1738866654284,-537.66978614,0.00017117,2]
[351978601,1738866654294,-500.0,0.00017117,2]
[351978603,1738866654306,-500.0,0.00017117,2]
[351978605,1738866654316,-500.0,0.00017117,2]
[351978607,1738866654326,-657.4,0.00017117,2]
[351978609,1738866654336,-1028.51,0.00017117,2]
[351978610,1738866654346,-578.6693405,0.00017117,2]
[351978612,1738866654356,-557.23,0.00017117,2]
[351978614,1738866654366,-913.22,0.00017117,2]
[351978616,1738866654378,-500.0,0.00017117,2]
[351978620,1738866654401,-1460.61,0.00017117,2]
[351978622,1738866654413,-500.0,0.00017117,2]
[351978624,1738866654424,-942.03,0.00017117,2]
[351978626,1738866654436,-1349.04,0.00017117,2]
[351978628,1738866654446,-500.0,0.00017117,2]
[351978630,1738866654460,-2044.93,0.00017117,2]
[351978632,1738866654476,-1093.42,0.00017117,2]
[351978634,1738866654487,-1136.07,0.00017117,2]
[351978636,1738866654503,-199.169216,0.00017117,2]
[351978638,1738866654514,-500.0,0.00017117,2]
[351978640,1738866654526,-1372.49,0.00017117,2]
[351978642,1738866654536,-792.46,0.00017117,2]
[351978644,1738866654546,-500.0,0.00017117,2]
[351978646,1738866654556,-746.98,0.00017117,2]
[351978648,1738866654566,-1643.24,0.00017117,2]
[351978650,1738866654576,-1549.95,0.00017117,2]
[351978652,1738866654586,-583.9,0.00017117,2]
[351978654,1738866654597,-942.67,0.00017117,2]
[351978656,1738866654607,-2419.41,0.00017117,2]
[351978658,1738866654616,-966.91,0.00017117,2]
[351978660,1738866654626,-808.88,0.00017117,2]
[351978662,1738866654637,-2612.15,0.00017117,2]
[351978664,1738866654647,-500.0,0.00017117,2]
[351978666,1738866654657,-204.110967,0.00017117,2]
[351978668,1738866654667,-500.0,0.00017117,2]
[351978670,1738866654677,-1149.7,0.00017117,2]
[351978672,1738866654688,-1041.66,0.00017117,2]
[351978674,1738866654699,-500.0,0.00017117,2]
[351978676,1738866654709,-1330.48,0.00017117,2]
[351978678,1738866654719,-1604.53,0.00017117,2]
[351978680,1738866654730,-531.94,0.00017117,2]
[351978683,1738866654742,-500.0,0.00017117,2]
[351978684,1738866654756,-500.0,0.00017117,2]
[351978686,1738866654773,-1401.73,0.00017117,2]
[351978688,1738866654783,-1589.88,0.00017117,2]
[351978690,1738866654793,-500.0,0.00017117,2]
[351978693,1738866654805,-850.56,0.00017117,2]
[351978695,1738866654818,-500.0,0.00017117,2]
[351978697,1738866654829,-500.0,0.00017117,2]
[351978699,1738866654840,-1104.05,0.00017117,2]
[351978701,1738866654850,-5370.59,0.00017117,2]
[351978703,1738866654860,-500.0,0.00017117,2]
[351978705,1738866654870,-1453.98,0.00017117,2]
[351978707,1738866654881,-1194.2,0.00017117,2]
[351978709,1738866654892,-566.05,0.00017117,2]
[351978711,1738866654903,-1388.6,0.00017117,2]
[351978713,1738866654914,-1308.07,0.00017117,2]
[351978715,1738866654924,-500.0,0.00017117,2]
[351978717,1738866654935,-500.0,0.00017117,2]
[351978719,1738866654945,-1399.15,0.00017117,2]
[351978721,1738866654955,-500.0,0.00017117,2]
[351978723,1738866654965,-300.0,0.00017117,2]
[351978725,1738866654975,-500.0,0.00017117,2]
[351978727,1738866654985,-1254.63,0.00017117,2]
[351978729,1738866654998,-2225.02,0.00017117,2]
[351978731,1738866655008,-915.99,0.00017117,2]
[351978733,1738866655018,-269.02238098,0.00017117,2]
[351978735,1738866655027,-1226.05,0.00017117,2]
[351978737,1738866655037,-2612.35,0.00017117,2]
[351978739,1738866655047,-719.96,0.00017117,2]
[351978741,1738866655056,-500.0,0.00017117,2]
[351978743,1738866655066,-151.0,0.00017117,2]
[351978745,1738866655075,-500.0,0.00017117,2]
[351978747,1738866655085,-2140.65,0.00017117,2]
[351978749,1738866655094,-1229.76,0.00017117,2]
[351978751,1738866655104,-1649.71,0.00017117,2]
[351978753,1738866655113,-3392.3,0.00017117,2]
[351978755,1738866655123,-500.0,0.00017117,2]
[351978757,1738866655132,-500.0,0.00017117,2]
[351978759,1738866655142,-1000.0,0.00017117,2]
[351978761,1738866655151,-500.0,0.00017117,2]
[351978763,1738866655160,-237.14384543,0.00017117,2]
[351978765,1738866655169,-1017.33,0.00017117,2]
[351978767,1738866655179,-500.0,0.00017117,2]
[351978769,1738866655189,-500.0,0.00017117,2]
[351978771,1738866655199,-1539.46,0.00017117,2]
[351978773,1738866655211,-1189.78,0.00017117,2]
[351978775,1738866655221,-951.64,0.00017117,2]
[351978777,1738866655231,-2117.54,0.00017117,2]
[351978779,1738866655240,-300.0,0.00017117,2]
[351978781,1738866655252,-300.0,0.00017117,2]
[351978783,1738866655262,-500.0,0.00017118,2]
[351978785,1738866655271,-513.27,0.00017118,2]
[351978787,1738866655281,-477.09539748,0.00017118,2]
[351978789,1738866655291,-500.0,0.00017118,2]
[351978791,1738866655301,-500.0,0.00017118,2]
[351978793,1738866655311,-500.0,0.00017118,2]
[351978795,1738866655322,-500.0,0.00017118,2]
[351978797,1738866655332,-523.24,0.00017118,2]
[351978799,1738866655342,-500.0,0.00017118,2]
[351978801,1738866655351,-500.0,0.00017118,2]
[351978803,1738866655361,-512.57,0.00017118,2]
[351978805,1738866655371,-500.0,0.00017118,2]
[351978807,1738866655381,-593.34,0.00017118,2]
[351978809,1738866655392,-700.92,0.00017118,2]
[351978811,1738866655402,-530.64,0.00017118,2]
[351978812,1738866655413,-500.0,0.00017118,2]
[351978814,1738866655424,-500.0,0.00017118,2]
[351978816,1738866655434,-500.0,0.00017118,2]
[351978817,1738866655444,-500.0,0.00017118,2]
[351978818,1738866655459,-500.0,0.00017118,2]
[351978819,1738866655475,-500.0,0.00017118,2]
[351978820,1738866655486,-618.16,0.00017118,2]
[351978821,1738866655497,-500.0,0.00017118,2]
[351978822,1738866655507,-500.0,0.00017118,2]
[351978823,1738866655518,-500.0,0.00017118,2]
[351978824,1738866655528,-500.0,0.00017118,2]
[351978825,1738866655539,-500.0,0.00017118,2]
[351978826,1738866655549,-500.0,0.00017118,2]
[351978827,1738866655559,-500.0,0.00017118,2]
[351978828,1738866655569,-500.0,0.00017118,2]
[351978830,1738866655579,-500.0,0.00017118,2]
[351978832,1738866655589,-500.0,0.00017118,2]
[351978834,1738866655599,-500.0,0.00017118,2]
[351978836,1738866655609,-500.0,0.00017118,2]
[351978838,1738866655619,-500.0,0.00017118,2]
[351978840,1738866655629,-500.0,0.00017118,2]
[351978841,1738866655639,-500.0,0.00017118,2]
[351978843,1738866655650,-500.0,0.00017118,2]
[351978845,1738866655660,-500.0,0.00017118,2]
[351978848,1738866655671,-500.0,0.00017118,2]
[351978850,1738866655681,-1141.65,0.00017118,2]
[351978852,1738866655692,-500.0,0.00017118,2]
[351978854,1738866655702,-500.0,0.00017118,2]
[351978856,1738866655713,-500.0,0.00017118,2]
[351978858,1738866655723,-500.0,0.00017118,2]
[351978860,1738866655732,-547.26,0.00017118,2]
[351978862,1738866655742,-500.0,0.00017118,2]
[351978864,1738866655754,-500.0,0.00017118,2]
[351978865,1738866655766,-500.0,0.00017118,2]
[351978867,1738866655776,-500.0,0.00017118,2]
[351978869,1738866655786,-408.55271838,0.00017118,2]
[351978871,1738866655800,-500.0,0.00017118,2]
[351978874,1738866655811,-500.0,0.00017118,2]
[351978876,1738866655822,-500.0,0.00017118,2]
[351978878,1738866655834,-500.0,0.00017118,2]
[351978880,1738866655845,-500.0,0.00017118,2]
[351978882,1738866655855,-540.35,0.00017118,2]
[351978884,1738866655866,-500.0,0.00017118,2]
[351978886,1738866655877,-500.0,0.00017118,2]
[351978888,1738866655888,-500.0,0.00017118,2]
[351978890,1738866655899,-500.0,0.00017118,2]
[351978892,1738866655911,-500.0,0.00017118,2]
[351978894,1738866655922,-630.24,0.00017118,2]
[351978896,1738866655933,-500.0,0.00017118,2]
[351978898,1738866655943,-500.0,0.00017118,2]
[351978900,1738866655953,-657.81,0.00017118,2]
[351978902,1738866655963,-500.0,0.00017118,2]
[351978904,1738866655973,-500.0,0.00017118,2]
[351978906,1738866655984,-500.0,0.00017118,2]
[351978908,1738866655994,-726.72,0.00017118,2]
[351978910,1738866656009,-500.0,0.00017118,2]
[351978912,1738866656020,-339.47552453,0.00017118,2]
[351978914,1738866656030,-500.0,0.00017118,2]
[351978916,1738866656040,-500.0,0.00017118,2]
[351978919,1738866656051,-500.0,0.00017118,2]
[351978921,1738866656061,-500.0,0.00017118,2]
[351978923,1738866656071,-502.89,0.00017118,2]
[351978925,1738866656081,-664.29,0.00017118,2]
[351978927,1738866656091,-847.16,0.00017118,2]
[351978929,1738866656101,-500.0,0.00017118,2]
[351978931,1738866656111,-680.74,0.00017118,2]
[351978933,1738866656122,-500.0,0.00017118,2]
[351978935,1738866656133,-500.0,0.00017118,2]
[351978937,1738866656143,-635.32,0.00017118,2]
[351978939,1738866656153,-500.0,0.00017118,2]
[351978941,1738866656164,-616.68,0.00017118,2]
[351978943,1738866656174,-942.54,0.00017118,2]
[351978945,1738866656184,-514.53,0.00017118,2]
[351978947,1738866656195,-1325.58,0.00017118,2]
[351978949,1738866656205,-616.62,0.00017118,2]
[351978951,1738866656215,-584.06,0.00017118,2]
[351978953,1738866656225,-782.48,0.00017118,2]
[351978955,1738866656235,-952.27,0.00017118,2]
[351978957,1738866656249,-1279.03,0.00017118,2]
[351978960,1738866656259,-563.5,0.00017118,2]
[351978962,1738866656269,-873.47,0.00017118,2]
[351978964,1738866656280,-500.0,0.00017118,2]
[351978966,1738866656290,-500.0,0.00017118,2]
[351978968,1738866656300,-811.69,0.00017118,2]
[351978970,1738866656310,-500.0,0.00017118,2]
[351978972,1738866656320,-2078.54,0.00017118,2]
[351978973,1738866656330,-992.68,0.00017118,2]
[351978974,1738866656340,-833.73,0.00017118,2]
[351978975,1738866656350,-1083.2,0.00017118,2]
[351978976,1738866656360,-1317.18,0.00017118,2]
[351978977,1738866656370,-700.98,0.00017118,2]
[351978978,1738866656380,-2735.04,0.00017118,2]
[351978979,1738866656391,-500.0,0.00017118,2]
[351978980,1738866656401,-960.07,0.00017118,2]
[351978981,1738866656411,-589.9,0.00017118,2]
[351978982,1738866656422,-1424.1,0.00017118,2]
[351978983,1738866656433,-1138.61,0.00017118,2]
[351978984,1738866656443,-1582.06,0.00017118,2]
[351978985,1738866656453,-803.99,0.00017118,2]
[351978986,1738866656464,-722.34,0.00017118,2]
[351978987,1738866656475,-500.0,0.00017118,2]
[351978988,1738866656485,-500.0,0.00017118,2]
[351978989,1738866656496,-936.37,0.00017118,2]
[351978990,1738866656507,-1029.92,0.00017118,2]
[351978991,1738866656517,-664.0,0.00017118,2]
[351978992,1738866656527,-1836.69,0.00017118,2]
[351978993,1738866656538,-700.04,0.00017118,2]
[351978994,1738866656548,-500.0,0.00017118,2]
[351978995,1738866656558,-2524.54,0.00017118,2]
[351978996,1738866656568,-500.0,0.00017118,2]
[351978997,1738866656578,-500.0,0.00017118,2]
[351978998,1738866656589,-500.0,0.00017118,2]
[351978999,1738866656599,-500.0,0.00017118,2]
[351979000,1738866656609,-1649.27,0.00017118,2]
[351979001,1738866656619,-500.0,0.00017118,2]
[351979002,1738866656630,-843.75,0.00017118,2]
[351979003,1738866656640,-1110.4,0.00017118,2]
[351979004,1738866656650,-1353.54,0.00017118,2]
[351979005,1738866656660,-842.77,0.00017118,2]
[351979006,1738866656671,-908.69,0.00017118,2]
[351979007,1738866656681,-587.68,0.00017118,2]
[351979008,1738866656692,-1257.73,0.00017118,2]
[351979009,1738866656703,-2630.17,0.00017118,2]
[351979010,1738866656714,-1528.25,0.00017118,2]
[351979011,1738866656724,-1242.52,0.00017118,2]
[351979012,1738866656736,-1407.68,0.00017118,2]
[351979014,1738866656748,-877.83,0.00017118,2]
[351979016,1738866656760,-1455.99,0.00017118,2]
[351979018,1738866656771,-500.0,0.00017118,2]
[351979020,1738866656782,-500.0,0.00017118,2]
[351979022,1738866656793,-1199.99,0.00017118,2]
[351979024,1738866656805,-500.0,0.00017118,2]
[351979026,1738866656815,-500.0,0.00017119,2]
[351979028,1738866656826,-580.86,0.00017119,2]
[351979030,1738866656836,-500.0,0.00017119,2]
[351979032,1738866656846,-1233.51,0.00017119,2]
[351979034,1738866656857,-500.0,0.00017119,2]
[351979036,1738866656867,-528.44,0.00017119,2]
[351979038,1738866656881,-500.0,0.00017119,2]
[351979040,1738866656891,-590.09,0.00017119,2]
[351979042,1738866656902,-851.34,0.00017121,2]
[351979044,1738866656912,-500.0,0.00017122,2]
[351979046,1738866656926,-500.0,0.00017122,2]
[351979048,1738866656936,-500.0,0.00017122,2]
[351979050,1738866656946,-500.0,0.00017122,2]
[351979052,1738866656956,-500.0,0.00017122,2]
[351979054,1738866656966,-500.0,0.00017122,2]
[351979056,1738866656977,-500.0,0.00017122,2]
[351979058,1738866656987,-629.41,0.00017123,2]
[351979060,1738866656997,-1212.13,0.00017123,2]
[351979063,1738866657008,-2191.68,0.00017123,2]
[351979064,1738866657018,-1150.67,0.00017123,2]
[351979067,1738866657027,-1194.7,0.00017123,2]
[351979069,1738866657038,-1670.96,0.00017123,2]
[351979071,1738866657048,-2394.38,0.00017123,2]
[351979073,1738866657058,-1909.88,0.00017123,2]
[351979075,1738866657068,-879.69,0.00017123,2]
[351979077,1738866657078,-1406.63,0.00017123,2]
[351979079,1738866657088,-500.0,0.00017123,2]
[351979081,1738866657098,-1626.57,0.00017123,2]
[351979083,1738866657108,-1052.49,0.00017123,2]
[351979085,1738866657118,-2439.5,0.00017123,2]
[351979087,1738866657128,-1556.35,0.00017123,2]
[351979089,1738866657139,-1571.46,0.00017123,2]
[351979091,1738866657150,-500.0,0.00017123,2]
[351979093,1738866657160,-500.0,0.00017123,2]
[351979095,1738866657171,-500.0,0.00017123,2]
[351979097,1738866657182,-3154.44,0.00017123,2]
[351979099,1738866657192,-500.0,0.00017123,2]
[351979101,1738866657202,-1374.49,0.00017123,2]
[351979103,1738866657212,-781.28,0.00017123,2]
[351979105,1738866657222,-500.0,0.00017123,2]
[351979107,1738866657233,-962.38,0.00017123,2]
[351979110,1738866657243,-666.23,0.00017123,2]
[351979112,1738866657256,-500.0,0.00017123,2]
[351979114,1738866657266,-876.98,0.00017123,2]
[351979116,1738866657276,-823.01,0.00017123,2]
[351979118,1738866657286,-752.31,0.00017123,2]
[351979120,1738866657296,-500.0,0.00017123,2]
[351979122,1738866657311,-1511.53,0.00017123,2]
[351979124,1738866657322,-200.0,0.00017123,2]
[351979126,1738866657333,-150.0,0.00017145,2]
[351979129,1738866657343,-151.51,0.0001716,2]
[351979131,1738866657354,-150.0,0.0001716,2]
[351979133,1738866657365,-150.0,0.0001716,2]
[351979135,1738866657375,-500.0,0.00017173,2]
[351979137,1738866657386,-500.0,0.00017173,2]
[351979139,1738866657396,-210.93304077,0.00017173,2]
[351979141,1738866657407,-300.0,0.00017191,2]
[351979143,1738866657418,-300.0,0.00017191,2]
[351979145,1738866657429,-300.0,0.00017254,2]
[351979148,1738866657440,-300.0,0.00017254,2]
[351979150,1738866657451,-357.25416946,0.00017254,2]
[351979152,1738866657460,-500.0,0.00017254,2]
[351979154,1738866657470,-500.0,0.00017254,2]
[351979156,1738866657480,-500.0,0.00017254,2]
[351979158,1738866657490,-500.0,0.00017254,2]
[351979160,1738866657505,-500.0,0.00017254,2]
[351979162,1738866657515,-500.0,0.00017254,2]
[351979164,1738866657526,-500.0,0.00017254,2]
[351979166,1738866657537,-500.0,0.00017254,2]
[351979168,1738866657548,-500.0,0.00017254,2]
[351979170,1738866657560,-500.0,0.00017254,2]
[351979172,1738866657571,-500.0,0.00017254,2]
[351979174,1738866657581,-511.45,0.00017254,2]
[351979176,1738866657593,-534.05,0.00017254,2]
[351979178,1738866657603,-500.0,0.00017254,2]
[351979180,1738866657614,-500.0,0.00017254,2]
[351979183,1738866657625,-500.0,0.00017254,2]
[351979185,1738866657635,-592.64,0.00017254,2]
[351979187,1738866657645,-500.0,0.00017254,2]
[351979189,1738866657655,-500.0,0.00017254,2]
[351979191,1738866657665,-500.0,0.00017254,2]
[351979193,1738866657675,-500.0,0.00017254,2]
[351979195,1738866657686,-500.0,0.00017254,2]
[351979197,1738866657697,-500.0,0.00017254,2]
[351979199,1738866657707,-500.0,0.00017254,2]
[351979201,1738866657717,-500.0,0.00017254,2]
[351979203,1738866657727,-500.0,0.00017254,2]
[351979205,1738866657737,-500.0,0.00017254,2]
[351979208,1738866657750,-500.0,0.00017254,2]
[351979210,1738866657761,-500.0,0.00017254,2]
[351979212,1738866657771,-500.0,0.00017254,2]
[351979214,1738866657782,-500.0,0.00017254,2]
[351979216,1738866657792,-500.0,0.00017254,2]
[351979238,1738866658014,-500.0,0.00017254,2]
[351979240,1738866658026,-161.10471139,0.00017254,2]
[351979243,1738866658037,-500.0,0.00017254,2]
[351979245,1738866658047,-657.4,0.00017254,2]
[351979247,1738866658060,-1028.51,0.00017254,2]
[351979249,1738866658071,-557.23,0.00017254,2]
[351979251,1738866658081,-913.22,0.00017254,2]
[351979253,1738866658092,-500.0,0.00017254,2]
[351979255,1738866658103,-1460.61,0.00017254,2]
[351979256,1738866658114,-500.0,0.00017254,2]
[351979258,1738866658126,-942.03,0.00017254,2]
[351979259,1738866658337,-1349.04,0.00017254,2]
[351979261,1738866658347,-500.0,0.00017254,2]
[351979263,1738866658357,-2044.93,0.00017254,2]
[351979265,1738866658367,-1093.42,0.00017254,2]
[351979268,1738866658377,-1136.07,0.00017254,2]
[351979269,1738866658387,-199.169216,0.00017254,2]
[351979272,1738866658398,-500.0,0.00017254,2]
[351979274,1738866658409,-1372.49,0.00017254,2]
[351979276,1738866658419,-792.46,0.00017254,2]
[351979278,1738866658429,-500.0,0.00017254,2]
[351979280,1738866658440,-746.98,0.00017254,2]
[351979282,1738866658451,-1643.24,0.00017254,2]
[351979283,1738866658461,-1549.95,0.00017254,2]
[351979285,1738866658470,-583.9,0.00017254,2]
[351979287,1738866658480,-942.67,0.00017254,2]
[351979289,1738866658490,-2419.41,0.00017254,2]
[351979291,1738866658501,-966.91,0.00017254,2]
[351979294,1738866658511,-808.88,0.00017254,2]
[351979296,1738866658521,-2612.15,0.00017254,2]
[351979298,1738866658531,-204.110967,0.00017254,2]
[351979300,1738866658542,-500.0,0.00017254,2]
[351979302,1738866658552,-1149.7,0.00017254,2]
[351979304,1738866658566,-1041.66,0.00017254,2]
[351979306,1738866658576,-500.0,0.00017254,2]
[351979308,1738866658586,-1330.48,0.00017254,2]
[351979310,1738866658596,-1604.53,0.00017254,2]
[351979311,1738866658606,-531.94,0.00017254,2]
[351979314,1738866658616,-500.0,0.00017254,2]
[351979316,1738866658627,-266.43992646,0.00017254,2]
[351979318,1738866658638,-1401.73,0.00017254,2]
[351979320,1738866658648,-1589.88,0.00017254,2]
[351979322,1738866658659,-500.0,0.00017254,2]
[351979324,1738866658670,-850.56,0.00017254,2]
[351979325,1738866658681,-500.0,0.00017254,2]
[351979327,1738866658693,-500.0,0.00017254,2]
[351979329,1738866658704,-1104.05,0.00017254,2]
[351979330,1738866658714,-5370.59,0.00017254,2]
[351979331,1738866658724,-500.0,0.00017254,2]
[351979332,1738866658736,-1453.98,0.00017254,2]
[351979333,1738866658748,-1194.2,0.00017254,2]
[351979334,1738866658761,-566.05,0.00017254,2]
[351979335,1738866658772,-1388.6,0.00017254,2]
[351979336,1738866658783,-1308.07,0.00017254,2]
[351979337,1738866658794,-500.0,0.00017254,2]
[351979338,1738866658811,-500.0,0.00017254,2]
[351979339,1738866658822,-1399.15,0.00017254,2]
[351979340,1738866658834,-500.0,0.00017254,2]
[351979341,1738866658844,-300.0,0.00017254,2]
[351979342,1738866658855,-500.0,0.00017254,2]